[Event "Live Chess"]
[Site "Chess.com"]
[Date "2023.05.21"]
[Round "-"]
[White "Hacker_2009"]
[Black "LodeshChess"]
[Result "1-0"]
[WhiteElo "1934"]
[BlackElo "1168"]
[TimeControl "300"]
[EndTime "6:21:53 PDT"]
[Termination "Hacker_2009 won by resignation"]

1. d4 {[%clk 0:04:58.6]} 1... Nf6 {[%clk 0:04:57.2]} 2. Nf3 {[%clk 0:04:57.1]}
2... c5 {[%clk 0:04:51.1]} 3. e3 {[%clk 0:04:56]} 3... Qb6 {[%clk 0:04:46.2]} 4.
c4 {[%clk 0:04:53]} 4... Nc6 {[%clk 0:04:43]} 5. d5 {[%clk 0:04:49.7]} 5... Nb4
{[%clk 0:04:36.2]} 6. a3 {[%clk 0:04:48.5]} 6... Na6 {[%clk 0:04:34.4]} 7. Nc3
{[%clk 0:04:47.4]} 7... d6 {[%clk 0:04:29.3]} 8. Bd3 {[%clk 0:04:43.8]} 8... Bg4
{[%clk 0:04:28.5]} 9. O-O {[%clk 0:04:42.1]} 9... e5 {[%clk 0:04:26.2]} 10. dxe6
{[%clk 0:04:39.7]} 10... Bxe6 {[%clk 0:04:23.4]} 11. Be2 {[%clk 0:04:37.5]}
11... Be7 {[%clk 0:04:18.5]} 12. Ng5 {[%clk 0:04:35.3]} 12... Bd7 {[%clk
0:04:05.6]} 13. Bf3 {[%clk 0:04:27.4]} 13... O-O {[%clk 0:03:55.8]} 14. Nge4
{[%clk 0:04:20.9]} 14... Nxe4 {[%clk 0:03:53.5]} 15. Bxe4 {[%clk 0:04:19.8]}
15... Bf6 {[%clk 0:03:50]} 16. Nd5 {[%clk 0:04:18.2]} 16... Qd8 {[%clk
0:03:43.8]} 17. Nxf6+ {[%clk 0:04:17]} 17... Qxf6 {[%clk 0:03:43.3]} 18. Bxb7
{[%clk 0:04:16.6]} 18... Qg6 {[%clk 0:03:26]} 19. Bxa6 {[%clk 0:04:13]} 19...
Bh3 {[%clk 0:03:24.5]} 20. Qf3 {[%clk 0:04:12.1]} 20... Bg4 {[%clk 0:03:06.1]}
21. Qg3 {[%clk 0:04:09.6]} 21... Rab8 {[%clk 0:03:00]} 22. h3 {[%clk 0:03:54.8]}
22... Bf5 {[%clk 0:02:57.9]} 23. Qxg6 {[%clk 0:03:53.4]} 23... Bxg6 {[%clk
0:02:57.4]} 24. b4 {[%clk 0:03:51.1]} 24... cxb4 {[%clk 0:02:55.2]} 25. axb4
{[%clk 0:03:51]} 25... Rxb4 {[%clk 0:02:54.3]} 26. Ba3 {[%clk 0:03:50.4]} 26...
Rxc4 {[%clk 0:02:50]} 27. Bxc4 {[%clk 0:03:48.7]} 1-0

[Event "Live Chess"]
[Site "Chess.com"]
[Date "2023.05.21"]
[Round "-"]
[White "MovebyMove"]
[Black "Nazar_777"]
[Result "1-0"]
[WhiteElo "2441"]
[BlackElo "1569"]
[TimeControl "300"]
[EndTime "6:22:04 PDT"]
[Termination "MovebyMove won by checkmate"]

1. Nf3 {[%clk 0:04:56.7]} 1... e6 {[%clk 0:04:59.2]} 2. d4 {[%clk 0:04:54.7]}
2... a6 {[%clk 0:04:58]} 3. e4 {[%clk 0:04:52.9]} 3... h5 {[%clk 0:04:57.1]} 4.
Bd3 {[%clk 0:04:51.3]} 4... c5 {[%clk 0:04:55.5]} 5. dxc5 {[%clk 0:04:49.5]}
5... Bxc5 {[%clk 0:04:54]} 6. O-O {[%clk 0:04:48.5]} 6... Be7 {[%clk 0:04:52.1]}
7. Nc3 {[%clk 0:04:47.2]} 7... Nf6 {[%clk 0:04:50.2]} 8. e5 {[%clk 0:04:45.9]}
8... Ng4 {[%clk 0:04:49.2]} 9. Qe2 {[%clk 0:04:38.6]} 9... Qc7 {[%clk
0:04:47.6]} 10. h3 {[%clk 0:04:19.2]} 10... Nh6 {[%clk 0:04:45.8]} 11. Ne4
{[%clk 0:04:11.2]} 11... Nc6 {[%clk 0:04:44.4]} 12. Bf4 {[%clk 0:04:09.7]} 12...
b5 {[%clk 0:04:41.3]} 13. Nd6+ {[%clk 0:04:05]} 13... Bxd6 {[%clk 0:04:16.8]}
14. exd6 {[%clk 0:04:03.3]} 14... Qb6 {[%clk 0:04:15.6]} 15. a4 {[%clk
0:03:55.5]} 15... Bb7 {[%clk 0:04:08.9]} 16. axb5 {[%clk 0:03:50.5]} 16... axb5
{[%clk 0:04:06.9]} 17. Rxa8+ {[%clk 0:03:49.1]} 17... Bxa8 {[%clk 0:04:05.7]}
18. Bxb5 {[%clk 0:03:45.9]} 18... Qb7 {[%clk 0:04:03.2]} 19. c3 {[%clk 0:03:41]}
19... Nf5 {[%clk 0:03:57.7]} 20. Bd3 {[%clk 0:03:31.6]} 20... g6 {[%clk
0:03:55.2]} 21. b4 {[%clk 0:03:25.7]} 21... Rg8 {[%clk 0:03:53.1]} 22. Be4
{[%clk 0:03:17.1]} 22... Ng7 {[%clk 0:03:40.2]} 23. b5 {[%clk 0:03:14.5]} 23...
f5 {[%clk 0:03:34.9]} 24. bxc6 {[%clk 0:03:11.1]} 24... dxc6 {[%clk 0:03:33.3]}
25. Bd3 {[%clk 0:03:06.9]} 25... h4 {[%clk 0:03:29.1]} 26. Rb1 {[%clk
0:03:04.7]} 26... Qa7 {[%clk 0:03:21.3]} 27. Ng5 {[%clk 0:02:57.9]} 27... Nh5
{[%clk 0:03:18.8]} 28. Qxe6+ {[%clk 0:02:54.3]} 28... Kd8 {[%clk 0:03:15.3]} 29.
Qxg8+ {[%clk 0:02:52.2]} 29... Kd7 {[%clk 0:03:12.8]} 30. Qe6+ {[%clk
0:02:49.2]} 30... Kd8 {[%clk 0:03:10.4]} 31. Nf7+ {[%clk 0:02:47.7]} 31... Qxf7
{[%clk 0:03:00.5]} 32. Rb8# {[%clk 0:02:45.7]} 1-0

[Event "Live Chess"]
[Site "Chess.com"]
[Date "2023.05.21"]
[Round "-"]
[White "ms_lilley"]
[Black "seasidecastle27"]
[Result "0-1"]
[WhiteElo "605"]
[BlackElo "1882"]
[TimeControl "300"]
[EndTime "6:22:05 PDT"]
[Termination "seasidecastle27 won by checkmate"]

1. d4 {[%clk 0:04:57.9]} 1... d5 {[%clk 0:04:56]} 2. e3 {[%clk 0:04:55]} 2... e6
{[%clk 0:04:54.8]} 3. Nf3 {[%clk 0:04:53.6]} 3... c5 {[%clk 0:04:53.2]} 4. dxc5
{[%clk 0:04:52]} 4... Bxc5 {[%clk 0:04:51.3]} 5. Bd2 {[%clk 0:04:44.8]} 5... Nc6
{[%clk 0:04:49.9]} 6. a3 {[%clk 0:04:43.5]} 6... Nf6 {[%clk 0:04:48.5]} 7. b4
{[%clk 0:04:42.1]} 7... Bd6 {[%clk 0:04:46.7]} 8. c4 {[%clk 0:04:38.7]} 8... O-O
{[%clk 0:04:43]} 9. c5 {[%clk 0:04:37.2]} 9... Bc7 {[%clk 0:04:40.8]} 10. Bc3
{[%clk 0:04:31.3]} 10... e5 {[%clk 0:04:36.1]} 11. Nxe5 {[%clk 0:04:24.4]} 11...
Nxe5 {[%clk 0:04:31.6]} 12. Bb5 {[%clk 0:04:15.7]} 12... a6 {[%clk 0:04:27.7]}
13. Bd3 {[%clk 0:04:09.2]} 13... Nfg4 {[%clk 0:04:15.3]} 14. O-O {[%clk
0:04:05]} 14... Nxh2 {[%clk 0:04:06.8]} 15. Kxh2 {[%clk 0:04:01.4]} 15... Qh4+
{[%clk 0:04:04.6]} 16. Kg1 {[%clk 0:03:55.4]} 16... Nf3+ {[%clk 0:04:00.2]} 17.
gxf3 {[%clk 0:03:52.2]} 17... Qh2# {[%clk 0:03:58.2]} 0-1

[Event "Live Chess"]
[Site "Chess.com"]
[Date "2023.05.21"]
[Round "-"]
[White "Chesscoach_Golichenko"]
[Black "Berdgross"]
[Result "1-0"]
[WhiteElo "2630"]
[BlackElo "697"]
[TimeControl "300"]
[EndTime "6:22:14 PDT"]
[Termination "Chesscoach_Golichenko won by checkmate"]

1. d4 {[%clk 0:04:57.9]} 1... d5 {[%clk 0:04:59.3]} 2. c4 {[%clk 0:04:53]} 2...
e6 {[%clk 0:04:59.2]} 3. Nc3 {[%clk 0:04:51.6]} 3... dxc4 {[%clk 0:04:57]} 4. e4
{[%clk 0:04:48.7]} 4... Bb4 {[%clk 0:04:50.7]} 5. Bxc4 {[%clk 0:04:47]} 5...
Bxc3+ {[%clk 0:04:49]} 6. bxc3 {[%clk 0:04:45.9]} 6... Nf6 {[%clk 0:04:43.3]} 7.
Bg5 {[%clk 0:04:45.4]} 7... O-O {[%clk 0:04:40.8]} 8. e5 {[%clk 0:04:44.3]} 8...
h6 {[%clk 0:04:34.4]} 9. Bh4 {[%clk 0:04:42.1]} 9... g5 {[%clk 0:04:28.2]} 10.
exf6 {[%clk 0:04:41]} 10... gxh4 {[%clk 0:04:26.6]} 11. Qg4+ {[%clk 0:04:39.4]}
11... Kh7 {[%clk 0:04:23.7]} 12. Qg7# {[%clk 0:04:39.3]} 1-0

[Event "Live Chess"]
[Site "Chess.com"]
[Date "2023.05.21"]
[Round "-"]
[White "LL220284LL"]
[Black "chessfiction"]
[Result "0-1"]
[WhiteElo "2270"]
[BlackElo "2323"]
[TimeControl "300"]
[EndTime "6:22:17 PDT"]
[Termination "chessfiction won by resignation"]

1. e4 {[%clk 0:04:59]} 1... d6 {[%clk 0:04:58.6]} 2. d4 {[%clk 0:04:58.1]} 2...
Nf6 {[%clk 0:04:57.3]} 3. Nc3 {[%clk 0:04:57.6]} 3... c6 {[%clk 0:04:56.4]} 4.
f4 {[%clk 0:04:54.6]} 4... Qa5 {[%clk 0:04:55.7]} 5. e5 {[%clk 0:04:52]} 5...
Ne4 {[%clk 0:04:54.6]} 6. Qf3 {[%clk 0:04:51.3]} 6... d5 {[%clk 0:04:53.1]} 7.
Bd3 {[%clk 0:04:49.7]} 7... g6 {[%clk 0:04:51.4]} 8. Ne2 {[%clk 0:04:47]} 8...
Na6 {[%clk 0:04:49.9]} 9. O-O {[%clk 0:04:43.4]} 9... Nb4 {[%clk 0:04:46.2]} 10.
Be3 {[%clk 0:04:37]} 10... h5 {[%clk 0:04:43.5]} 11. a3 {[%clk 0:04:33.5]} 11...
Nxd3 {[%clk 0:04:41.8]} 12. cxd3 {[%clk 0:04:33.4]} 12... Bg4 {[%clk 0:04:37.9]}
13. dxe4 {[%clk 0:04:28]} 13... Bxf3 {[%clk 0:04:36.1]} 14. Rxf3 {[%clk
0:04:27.1]} 14... dxe4 {[%clk 0:04:34.2]} 15. Nxe4 {[%clk 0:04:25.9]} 15... Bh6
{[%clk 0:04:28.6]} 16. Bf2 {[%clk 0:04:22.7]} 16... O-O {[%clk 0:04:22.3]} 17.
f5 {[%clk 0:04:21.4]} 17... Qb5 {[%clk 0:04:16.5]} 18. N2c3 {[%clk 0:04:05.7]}
18... Qxb2 {[%clk 0:04:15.2]} 19. Rf1 {[%clk 0:04:05.2]} 19... Rad8 {[%clk
0:04:09.9]} 20. Bh4 {[%clk 0:04:01.3]} 20... Rxd4 {[%clk 0:03:49.2]} 21. Bxe7
{[%clk 0:03:59.7]} 21... Rxe4 {[%clk 0:03:36]} 22. Nxe4 {[%clk 0:03:53.8]} 22...
Qd4+ {[%clk 0:03:34.9]} 23. Nf2 {[%clk 0:03:52.5]} 23... Re8 {[%clk 0:03:29.7]}
24. Bf6 {[%clk 0:03:50.8]} 24... Bg7 {[%clk 0:03:15.7]} 25. fxg6 {[%clk
0:03:46]} 25... fxg6 {[%clk 0:03:11.7]} 26. Kh1 {[%clk 0:03:44.2]} 26... Rf8
{[%clk 0:03:03.3]} 27. Nh3 {[%clk 0:03:40.4]} 27... c5 {[%clk 0:02:36.9]} 28.
Ng5 {[%clk 0:03:37.8]} 28... Qg4 {[%clk 0:02:28.8]} 29. h3 {[%clk 0:03:16.6]}
29... Qc4 {[%clk 0:02:21.7]} 30. Rf4 {[%clk 0:03:13.5]} 30... Qa6 {[%clk
0:02:16.8]} 31. e6 {[%clk 0:03:07.3]} 31... Bxf6 {[%clk 0:02:13.5]} 32. Rxf6
{[%clk 0:03:06.6]} 32... Qxf1+ {[%clk 0:02:12.1]} 0-1

[Event "Live Chess"]
[Site "Chess.com"]
[Date "2023.05.21"]
[Round "-"]
[White "ViktorTheCoolBoy"]
[Black "bedsdrout"]
[Result "0-1"]
[WhiteElo "2446"]
[BlackElo "1117"]
[TimeControl "300"]
[EndTime "6:22:23 PDT"]
[Termination "bedsdrout won on time"]

1. e4 {[%clk 0:04:58.2]} 1... d5 {[%clk 0:04:52.2]} 2. exd5 {[%clk 0:04:56.8]}
2... e6 {[%clk 0:04:50]} 3. dxe6 {[%clk 0:04:55.1]} 3... Bxe6 {[%clk 0:04:42.5]}
4. Nf3 {[%clk 0:04:54.3]} 4... h6 {[%clk 0:04:36.9]} 5. d4 {[%clk 0:04:52.3]}
5... Nf6 {[%clk 0:04:32.2]} 6. c4 {[%clk 0:04:50.7]} 6... Qe7 {[%clk 0:04:29.2]}
7. Be3 {[%clk 0:04:47.1]} 7... Qb4+ {[%clk 0:04:26.9]} 8. Qd2 {[%clk 0:04:42.8]}
8... Bxc4 {[%clk 0:04:24.1]} 9. Bxc4 {[%clk 0:04:31.3]} 9... Qxc4 {[%clk
0:04:19.5]} 10. Ne5 {[%clk 0:04:30.4]} 10... Qa6 {[%clk 0:04:16.5]} 11. Nc3
{[%clk 0:04:27.8]} 11... Bd6 {[%clk 0:04:11.3]} 12. Nd3 {[%clk 0:04:13.5]} 12...
Nc6 {[%clk 0:04:01.4]} 13. O-O {[%clk 0:04:11.5]} 13... O-O {[%clk 0:03:56.4]}
14. Nc5 {[%clk 0:04:06.6]} 14... Bxc5 {[%clk 0:03:54]} 15. dxc5 {[%clk
0:04:05.6]} 15... Rad8 {[%clk 0:03:51.2]} 16. Qc2 {[%clk 0:04:04.8]} 16... Nb4
{[%clk 0:03:48.7]} 17. Qb3 {[%clk 0:04:03.5]} 17... Nd3 {[%clk 0:03:46.7]} 18.
Rad1 {[%clk 0:04:01.8]} 18... c6 {[%clk 0:03:44.4]} 19. Rd2 {[%clk 0:03:54.8]}
19... Nxc5 {[%clk 0:03:40.2]} 20. Bxc5 {[%clk 0:03:53.9]} 20... Rxd2 {[%clk
0:03:37.4]} 21. Bxf8 {[%clk 0:03:52.6]} 21... Kxf8 {[%clk 0:03:34.8]} 22. Re1
{[%clk 0:03:47.8]} 22... Qb6 {[%clk 0:03:32.4]} 23. Qxb6 {[%clk 0:03:44.8]}
23... axb6 {[%clk 0:03:30.8]} 24. Rb1 {[%clk 0:03:43]} 24... Ng4 {[%clk
0:03:28]} 25. Ne4 {[%clk 0:03:41.4]} 25... Re2 {[%clk 0:03:25.6]} 26. h3 {[%clk
0:03:40.4]} 26... Rxe4 {[%clk 0:03:22.9]} 27. f3 {[%clk 0:02:53.9]} 27... Ra4
{[%clk 0:03:20]} 28. hxg4 {[%clk 0:02:52.5]} 28... Rxa2 {[%clk 0:03:17.6]} 29.
Kf2 {[%clk 0:02:50.7]} 29... b5 {[%clk 0:03:15.5]} 30. Ke3 {[%clk 0:02:49.6]}
30... c5 {[%clk 0:03:12.3]} 31. Ke4 {[%clk 0:02:48.7]} 31... b6 {[%clk
0:03:10.8]} 32. Kd5 {[%clk 0:02:48]} 32... c4 {[%clk 0:03:09.2]} 33. Kc6 {[%clk
0:02:46.2]} 33... b4 {[%clk 0:03:07.2]} 34. Kxb6 {[%clk 0:02:43.7]} 34... c3
{[%clk 0:03:05.4]} 35. bxc3 {[%clk 0:02:42.7]} 35... bxc3 {[%clk 0:03:04]} 36.
Rc1 {[%clk 0:02:42.2]} 36... Rxg2 {[%clk 0:03:02]} 37. Rxc3 {[%clk 0:02:41.1]}
37... g6 {[%clk 0:02:59.9]} 38. Kc5 {[%clk 0:02:40]} 38... Rd2 {[%clk
0:02:57.6]} 39. f4 {[%clk 0:02:32.9]} 39... Rg2 {[%clk 0:02:54.8]} 40. Rh3
{[%clk 0:01:16.5]} 40... Kg7 {[%clk 0:02:47.1]} 41. Rh4 {[%clk 0:01:14.4]} 41...
g5 {[%clk 0:02:45.1]} 42. fxg5 {[%clk 0:01:13.4]} 42... hxg5 {[%clk 0:02:43.9]}
43. Rh1 {[%clk 0:01:12.5]} 43... Rxg4 {[%clk 0:02:42.5]} 44. Kd5 {[%clk
0:01:11.8]} 44... f5 {[%clk 0:02:40.6]} 45. Ke5 {[%clk 0:01:10.6]} 45... Kg6
{[%clk 0:02:39.1]} 46. Rh8 {[%clk 0:01:08.9]} 46... Re4+ {[%clk 0:02:36.9]} 47.
Kd5 {[%clk 0:01:05.5]} 47... g4 {[%clk 0:02:35.1]} 48. Rg8+ {[%clk 0:01:04.2]}
48... Kh5 {[%clk 0:02:33.3]} 49. Rg7 {[%clk 0:01:00.9]} 49... Re2 {[%clk
0:02:31.1]} 50. Rg8 {[%clk 0:00:00.4]} 50... f4 {[%clk 0:02:28.5]} 0-1

[Event "Live Chess"]
[Site "Chess.com"]
[Date "2023.05.21"]
[Round "-"]
[White "mattihelenius2"]
[Black "Delacorta"]
[Result "0-1"]
[WhiteElo "491"]
[BlackElo "1398"]
[TimeControl "300"]
[EndTime "6:22:30 PDT"]
[Termination "Delacorta won by resignation"]

1. d4 {[%clk 0:04:57.1]} 1... e6 {[%clk 0:04:59.1]} 2. c4 {[%clk 0:04:56.4]}
2... f5 {[%clk 0:04:58.4]} 3. Nc3 {[%clk 0:04:55.3]} 3... Nf6 {[%clk 0:04:57.6]}
4. Nf3 {[%clk 0:04:52.8]} 4... c6 {[%clk 0:04:56.8]} 5. e4 {[%clk 0:04:47.7]}
5... fxe4 {[%clk 0:04:55.4]} 6. Qe2 {[%clk 0:04:40.9]} 6... exf3 {[%clk
0:04:52.3]} 7. Qxf3 {[%clk 0:04:38]} 7... Be7 {[%clk 0:04:49.6]} 8. Bd3 {[%clk
0:04:36.1]} 8... O-O {[%clk 0:04:48]} 9. Bg5 {[%clk 0:04:34.2]} 9... Qa5 {[%clk
0:04:32.4]} 10. Qh3 {[%clk 0:04:31.8]} 10... Qxg5 {[%clk 0:04:21.6]} 11. Qxh7+
{[%clk 0:04:27.4]} 11... Nxh7 {[%clk 0:04:19.7]} 0-1

[Event "Live Chess"]
[Site "Chess.com"]
[Date "2023.05.21"]
[Round "-"]
[White "Geomorph"]
[Black "manthanit"]
[Result "1-0"]
[WhiteElo "1286"]
[BlackElo "1081"]
[TimeControl "300"]
[EndTime "6:22:40 PDT"]
[Termination "Geomorph won by checkmate"]

1. e4 {[%clk 0:04:59.2]} 1... e6 {[%clk 0:04:58.4]} 2. Nf3 {[%clk 0:04:57.1]}
2... d6 {[%clk 0:04:57.7]} 3. Nc3 {[%clk 0:04:56.6]} 3... g6 {[%clk 0:04:57.1]}
4. d4 {[%clk 0:04:54.2]} 4... Bg7 {[%clk 0:04:56.7]} 5. Be3 {[%clk 0:04:51]}
5... Ne7 {[%clk 0:04:56.2]} 6. Bd3 {[%clk 0:04:49.4]} 6... c5 {[%clk 0:04:53.4]}
7. dxc5 {[%clk 0:04:46]} 7... dxc5 {[%clk 0:04:52.7]} 8. Bxc5 {[%clk 0:04:43.4]}
8... Qa5 {[%clk 0:04:45.7]} 9. Bxe7 {[%clk 0:04:41]} 9... Kxe7 {[%clk
0:04:44.8]} 10. O-O {[%clk 0:04:40]} 10... Re8 {[%clk 0:04:43.3]} 11. Qd2 {[%clk
0:04:34.2]} 11... Kf8 {[%clk 0:04:40.9]} 12. a3 {[%clk 0:04:25.1]} 12... Qb6
{[%clk 0:04:33]} 13. b4 {[%clk 0:04:20.2]} 13... Qc7 {[%clk 0:04:30.1]} 14. Ne2
{[%clk 0:04:15.4]} 14... Bxa1 {[%clk 0:04:28.1]} 15. Rxa1 {[%clk 0:04:15.1]}
15... Qe7 {[%clk 0:04:26.5]} 16. Qc3 {[%clk 0:04:12.7]} 16... b6 {[%clk
0:04:20.2]} 17. Qh8# {[%clk 0:04:11.5]} 1-0

[Event "Live Chess"]
[Site "Chess.com"]
[Date "2023.05.21"]
[Round "-"]
[White "GMHarry-youtube"]
[Black "PantherCal"]
[Result "1-0"]
[WhiteElo "2035"]
[BlackElo "1797"]
[TimeControl "300"]
[EndTime "6:22:45 PDT"]
[Termination "GMHarry-youtube won by resignation"]

1. e4 {[%clk 0:04:58.8]} 1... d5 {[%clk 0:04:59]} 2. exd5 {[%clk 0:04:57.2]}
2... Qxd5 {[%clk 0:04:58.9]} 3. Nc3 {[%clk 0:04:55.9]} 3... Qa5 {[%clk
0:04:57.8]} 4. d4 {[%clk 0:04:54.9]} 4... c6 {[%clk 0:04:57.7]} 5. Nf3 {[%clk
0:04:53.7]} 5... Nf6 {[%clk 0:04:57.6]} 6. Bc4 {[%clk 0:04:52.6]} 6... Bf5
{[%clk 0:04:56.9]} 7. Ne5 {[%clk 0:04:51.1]} 7... Nbd7 {[%clk 0:04:52.9]} 8.
Nxf7 {[%clk 0:04:46.6]} 8... Nd5 {[%clk 0:04:44.1]} 9. Nxh8 {[%clk 0:04:42.1]}
9... Nxc3 {[%clk 0:04:43.2]} 10. Bf7+ {[%clk 0:04:36]} 10... Kd8 {[%clk
0:04:41]} 11. bxc3 {[%clk 0:04:34.3]} 11... Qxc3+ {[%clk 0:04:39.9]} 12. Bd2
{[%clk 0:04:33.6]} 12... Qxd4 {[%clk 0:04:26.2]} 1-0

[Event "Live Chess"]
[Site "Chess.com"]
[Date "2023.05.21"]
[Round "-"]
[White "YrrriKharkiv"]
[Black "ShanthamGrarks"]
[Result "0-1"]
[WhiteElo "2075"]
[BlackElo "1986"]
[TimeControl "300"]
[EndTime "6:22:49 PDT"]
[Termination "ShanthamGrarks won by resignation"]

1. d4 {[%clk 0:04:57.5]} 1... Nf6 {[%clk 0:04:57.1]} 2. Nf3 {[%clk 0:04:57.2]}
2... e6 {[%clk 0:04:55.9]} 3. c4 {[%clk 0:04:56.8]} 3... c5 {[%clk 0:04:54.9]}
4. d5 {[%clk 0:04:55.6]} 4... exd5 {[%clk 0:04:53.4]} 5. cxd5 {[%clk 0:04:55.4]}
5... d6 {[%clk 0:04:52.4]} 6. Nc3 {[%clk 0:04:54.6]} 6... Bg4 {[%clk 0:04:51.4]}
7. Nd2 {[%clk 0:04:53.1]} 7... Be7 {[%clk 0:04:50]} 8. h3 {[%clk 0:04:52]} 8...
Bh5 {[%clk 0:04:49.2]} 9. Qb3 {[%clk 0:04:48.6]} 9... Qc8 {[%clk 0:04:41]} 10.
e4 {[%clk 0:04:47.1]} 10... Nbd7 {[%clk 0:04:38]} 11. f4 {[%clk 0:04:40.2]}
11... h6 {[%clk 0:04:12.3]} 12. f5 {[%clk 0:04:36.5]} 12... Ne5 {[%clk
0:04:11.3]} 13. g4 {[%clk 0:04:30.8]} 13... Nfxg4 {[%clk 0:04:06.6]} 14. hxg4
{[%clk 0:04:30]} 14... Bxg4 {[%clk 0:04:06.2]} 15. Bb5+ {[%clk 0:04:21.9]} 15...
Kf8 {[%clk 0:04:05]} 16. Be2 {[%clk 0:04:19.5]} 16... Bxe2 {[%clk 0:04:01.7]}
17. Kxe2 {[%clk 0:04:18.5]} 17... g6 {[%clk 0:03:58.9]} 18. Qc2 {[%clk
0:03:52.1]} 18... gxf5 {[%clk 0:03:57.3]} 19. exf5 {[%clk 0:03:51.1]} 19... Rg8
{[%clk 0:03:53]} 20. Kf1 {[%clk 0:03:40]} 20... Ng4 {[%clk 0:03:41]} 21. Nf3
{[%clk 0:03:21.6]} 21... Bg5 {[%clk 0:03:38.4]} 22. Nxg5 {[%clk 0:03:12.7]}
22... hxg5 {[%clk 0:03:35.6]} 23. Qe4 {[%clk 0:03:06.8]} 23... Ne5 {[%clk
0:03:29.9]} 24. Be3 {[%clk 0:02:58.3]} 24... b6 {[%clk 0:03:23.9]} 25. a4 {[%clk
0:02:48.6]} 25... Qd7 {[%clk 0:03:13.9]} 26. Ke2 {[%clk 0:02:33]} 26... Re8
{[%clk 0:03:12.5]} 27. Rag1 {[%clk 0:02:28]} 27... g4 {[%clk 0:03:02.5]} 28. f6
{[%clk 0:02:22.4]} 28... Rc8 {[%clk 0:02:41.5]} 29. Bh6+ {[%clk 0:02:07.8]}
29... Ke8 {[%clk 0:02:40]} 30. Bf4 {[%clk 0:02:07.3]} 30... Kd8 {[%clk
0:02:27.1]} 31. Kd2 {[%clk 0:01:50.1]} 31... Re8 {[%clk 0:02:21.6]} 32. Bxe5
{[%clk 0:01:49.5]} 32... Rxe5 {[%clk 0:02:19.5]} 33. Qxg4 {[%clk 0:01:46.9]}
33... Rf5 {[%clk 0:01:47.9]} 34. Nb5 {[%clk 0:01:23.1]} 34... Rxd5+ {[%clk
0:01:43.1]} 35. Kc1 {[%clk 0:01:17.4]} 35... Qxg4 {[%clk 0:01:37.5]} 36. Rxg4
{[%clk 0:01:15.1]} 36... Kd7 {[%clk 0:01:35.9]} 37. Re4 {[%clk 0:01:07.3]} 37...
Re8 {[%clk 0:01:30]} 38. Rxe8 {[%clk 0:01:03.4]} 38... Kxe8 {[%clk 0:01:29.1]}
39. Re1+ {[%clk 0:01:02.5]} 39... Kf8 {[%clk 0:01:22.7]} 40. Rf1 {[%clk
0:00:54.5]} 40... a6 {[%clk 0:01:15.9]} 41. Nc7 {[%clk 0:00:53.2]} 41... Rd4
{[%clk 0:01:13.4]} 42. Nxa6 {[%clk 0:00:45.6]} 42... Rxa4 {[%clk 0:01:12.2]} 43.
Nc7 {[%clk 0:00:44.8]} 43... Ra1+ {[%clk 0:01:10.8]} 44. Kd2 {[%clk 0:00:43.4]}
44... Rxf1 {[%clk 0:01:10.4]} 45. Nd5 {[%clk 0:00:42.7]} 45... Rf5 {[%clk
0:01:07.3]} 46. Ne3 {[%clk 0:00:41.4]} 46... Rxf6 {[%clk 0:01:05.8]} 0-1

[Event "Live Chess"]
[Site "Chess.com"]
[Date "2023.05.21"]
[Round "-"]
[White "GwaryTek"]
[Black "viktorskliarov"]
[Result "0-1"]
[WhiteElo "2060"]
[BlackElo "2651"]
[TimeControl "300"]
[EndTime "6:22:57 PDT"]
[Termination "viktorskliarov won by resignation"]

1. d4 {[%clk 0:04:59.2]} 1... Nf6 {[%clk 0:04:58]} 2. c4 {[%clk 0:04:57.6]} 2...
e6 {[%clk 0:04:55.8]} 3. Nc3 {[%clk 0:04:55.7]} 3... Bb4 {[%clk 0:04:53.8]} 4.
Nf3 {[%clk 0:04:55.6]} 4... b6 {[%clk 0:04:50.7]} 5. Bg5 {[%clk 0:04:54]} 5...
h6 {[%clk 0:04:49.3]} 6. Bh4 {[%clk 0:04:53.3]} 6... g5 {[%clk 0:04:48.5]} 7.
Bg3 {[%clk 0:04:52.8]} 7... Ne4 {[%clk 0:04:47.6]} 8. Rc1 {[%clk 0:04:45]} 8...
Bb7 {[%clk 0:04:41.5]} 9. e3 {[%clk 0:04:43.6]} 9... f5 {[%clk 0:04:33]} 10. Bd3
{[%clk 0:04:42.1]} 10... Bxc3+ {[%clk 0:04:25.9]} 11. bxc3 {[%clk 0:04:40.4]}
11... d6 {[%clk 0:04:25.5]} 12. h4 {[%clk 0:04:26]} 12... Nxg3 {[%clk
0:04:22.8]} 13. fxg3 {[%clk 0:04:24.5]} 13... g4 {[%clk 0:04:22.3]} 14. Nd2
{[%clk 0:04:16]} 14... Bxg2 {[%clk 0:04:21.1]} 15. Rh2 {[%clk 0:04:06.3]} 15...
Bb7 {[%clk 0:04:17.8]} 16. e4 {[%clk 0:04:03.3]} 16... O-O {[%clk 0:03:24.2]}
17. Qe2 {[%clk 0:03:45.8]} 17... Nd7 {[%clk 0:02:49.7]} 18. Kd1 {[%clk
0:03:37.9]} 18... Qf6 {[%clk 0:02:40]} 19. Rf2 {[%clk 0:03:01.2]} 19... Rae8
{[%clk 0:02:33.8]} 20. Kc2 {[%clk 0:02:58.2]} 20... Qg7 {[%clk 0:02:18.9]} 21.
Rcf1 {[%clk 0:02:53.7]} 21... c5 {[%clk 0:02:10.2]} 22. Nb3 {[%clk 0:01:10.3]}
22... a5 {[%clk 0:01:51.2]} 23. exf5 {[%clk 0:00:54.7]} 23... exf5 {[%clk
0:01:47.6]} 24. Qd2 {[%clk 0:00:54.1]} 24... a4 {[%clk 0:01:44.5]} 25. Nc1
{[%clk 0:00:36.5]} 25... Be4 {[%clk 0:01:43.1]} 26. d5 {[%clk 0:00:22.4]} 26...
Ne5 {[%clk 0:01:38]} 27. Kb2 {[%clk 0:00:12.1]} 27... Bxd3 {[%clk 0:01:35.7]}
0-1